bitfinex/quotes_SOLUSD_20260217
["timestamp","ask_amount","ask_price","bid_price","bid_amount"]
[1771306788618,0.14216157,85.829,85.801,0.56204673]
[1771306789509,0.14216157,85.829,85.793,15.5]
[1771306789716,0.14216157,85.829,85.794,0.56204673]
[1771306793218,11.79323521,85.829,85.794,0.56204673]
[1771306793939,11.79323521,85.829,85.796,0.56204673]
[1771306794147,11.79323521,85.829,85.801,0.56204673]
[1771306795636,40.77495717,85.837,85.801,0.56204673]
[1771306795937,3.3226019,85.83,85.801,0.56204673]
[1771306798440,11.65107364,85.829,85.801,0.56204673]
[1771306798735,3.3226019,85.81,85.776,0.56204673]
[1771306799327,0.14216157,85.809,85.776,0.56204673]
[1771306799639,11.79595079,85.809,85.776,0.56204673]
[1771306800533,0.14216157,85.807,85.776,0.56204673]
[1771306801113,0.14216157,85.807,85.781,0.56204673]
[1771306801318,0.14216157,85.807,85.78,3.3226019]
[1771306801319,26.34321055,85.808,85.803,0.56204673]
[1771306801541,28.91361283,85.807,85.803,0.56204673]
[1771306801746,0.47952556,85.827,85.8,3.3226019]
[1771306802137,0.50548729,85.826,85.8,3.3226019]
[1771306802941,0.50548729,85.826,85.801,0.03550783]
[1771306803138,0.50548729,85.859,85.821,0.03550783]
[1771306803344,0.50548729,85.858,85.821,0.03550783]
[1771306803843,0.50548729,85.856,85.821,0.03550783]
[1771306804036,0.47952556,85.839,85.796,0.48896532]
[1771306804348,0.47952556,85.829,85.796,0.48896532]
[1771306804539,0.47952556,85.829,85.8,3.3226019]
[1771306805745,0.47952556,85.827,85.796,0.48896532]
[1771306806041,0.47952556,85.827,85.797,11.65541918]
[1771306806242,0.47952556,85.827,85.8,3.3226019]
[1771306806436,10.96591259,85.828,85.801,0.48896532]
[1771306807850,29.12506104,85.837,85.801,0.48896532]
[1771306808548,0.47952556,85.838,85.801,0.48896532]
[1771306808730,0.47952556,85.838,85.802,11.65473998]
[1771306808925,11.64971632,85.839,85.803,0.48896532]
[1771306809137,11.64930919,85.842,85.811,0.48896532]
[1771306809444,0.47952556,85.839,85.802,0.48896532]
[1771306810035,0.47952556,85.819,85.78,3.3226019]
[1771306810234,0.47952556,85.819,85.782,0.48896532]
[1771306810447,0.47952556,85.819,85.791,0.48896532]
[1771306810947,0.47952556,85.837,85.801,0.48896532]
[1771306811242,0.47952556,85.829,85.793,0.48896532]
[1771306811636,0.47952556,85.819,85.793,0.48896532]
[1771306812435,11.65256706,85.818,85.793,0.48896532]
[1771306812640,0.47952556,85.817,85.793,0.48896532]
[1771306813550,0.47952556,85.836,85.793,0.48896532]
[1771306813851,0.47952556,85.848,85.821,0.48896532]
[1771306814050,0.47952556,85.848,85.811,0.48896532]
[1771306814260,0.48417572,85.839,85.804,0.50300049]
[1771306814853,4.61729252,85.846,85.789,0.50300049]
[1771306814854,0.48417572,85.829,85.789,0.50300049]
[1771306815152,0.48417572,85.829,85.79,3.3226019]
[1771306815354,0.48417572,85.829,85.79,3.82560239]
[1771306816247,0.48417572,85.829,85.79,3.3226019]
[1771306816446,0.48417572,85.819,85.784,0.50300049]
[1771306816747,0.48417572,85.817,85.784,0.50300049]
[1771306816954,0.48417572,85.817,85.791,0.50300049]
[1771306817256,0.48417572,85.817,85.781,0.50300049]
[1771306817834,0.48417572,85.817,85.791,0.50300049]
[1771306818239,12.13603025,85.824,85.801,0.50300049]
[1771306818553,0.48417572,85.832,85.8,3.3226019]
[1771306818745,0.48417572,85.827,85.794,0.50300049]
[1771306819860,0.48417572,85.825,85.794,0.50300049]
[1771306820161,0.48417572,85.825,85.79,3.3226019]
[1771306820365,0.48417572,85.825,85.79,3.82560239]
[1771306820564,0.48417572,85.825,85.791,0.50300049]
[1771306821054,0.48417572,85.819,85.781,0.50300049]
[1771306824158,0.48417572,85.817,85.791,0.50300049]
[1771306824461,11.65256706,85.818,85.791,0.50300049]
[1771306825245,11.65208869,85.822,85.801,0.50300049]
[1771306825556,0.48417572,85.822,85.801,0.50300049]
[1771306825753,0.48417572,85.822,85.791,0.50300049]
[1771306825942,11.65135142,85.827,85.8,3.3226019]
[1771306826146,0.48417572,85.826,85.801,0.50300049]
[1771306827543,0.48417572,85.824,85.801,0.50300049]
[1771306830563,0.51498368,85.833,85.801,0.50300049]
[1771306831263,0.51498368,85.829,85.801,0.50300049]
[1771306831643,0.51498368,85.819,85.785,0.49853405]
[1771306831846,0.51498368,85.819,85.779,0.49853405]
[1771306832049,0.51498368,85.819,85.781,0.49853405]
[1771306833069,0.51498368,85.799,85.761,0.49853405]
[1771306833756,0.51498368,85.789,85.761,0.49853405]
[1771306834857,0.51498368,85.789,85.755,0.49853405]
[1771306835172,0.51498368,85.787,85.755,0.49853405]
[1771306836664,32.46362137,85.79,85.755,0.49853405]
[1771306836665,0.51498368,85.785,85.755,0.49853405]
[1771306838469,11.65611389,85.792,85.761,0.49853405]
[1771306838958,11.65611389,85.792,85.76,3.32800257]
[1771306838959,11.65611389,85.792,85.771,0.49853405]
[1771306839277,11.65535895,85.798,85.771,0.49853405]
[1771306839857,12.17034263,85.798,85.771,0.49853405]
[1771306840673,0.51498368,85.797,85.771,0.49853405]
[1771306841379,12.16895306,85.808,85.773,0.49853405]
[1771306841698,12.16895306,85.808,85.781,0.49853405]
[1771306842252,11.65326964,85.813,85.781,0.49853405]
[1771306842467,4.61729252,85.831,85.772,11.65881639]
[1771306842468,0.51498368,85.829,85.801,0.49853405]
[1771306842759,0.51498368,85.828,85.801,0.49853405]
[1771306844882,12.13354523,85.827,85.801,0.49853405]
[1771306846564,11.65161666,85.825,85.801,0.49853405]
[1771306853378,11.65099056,85.83,85.802,0.48877968]
[1771306853578,0.7,85.838,85.821,0.48877968]
[1771306853785,11.64928801,85.843,85.821,0.48877968]
[1771306855295,0.49577847,85.842,85.821,0.48877968]
[1771306857300,12.14522337,85.841,85.821,0.48877968]
[1771306858192,0.49577847,85.84,85.821,0.48877968]
[1771306858998,11.64971632,85.839,85.821,0.48877968]
[1771306859796,12.34894099,85.845,85.821,0.48877968]
[1771306860008,0.7,85.845,85.821,0.48877968]
[1771306860472,0.7,85.845,85.823,0.48877968]
[1771306861099,11.64721558,85.858,85.831,0.48877968]
[1771306861279,0.7,85.859,85.841,0.48877968]
[1771306861798,0.49577847,85.858,85.841,0.48877968]
[1771306862093,0.7,85.859,85.841,0.48877968]
[1771306863991,0.7,85.859,85.841,11.64941555]
[1771306864205,11.64564627,85.869,85.842,0.11399906]
[1771306864390,0.2,85.87,85.842,0.11399906]
[1771306864882,0.2,85.87,85.85,3.32800257]
[1771306865090,0.2,85.87,85.851,0.1137471]
[1771306866713,0.2,85.87,85.861,0.11325181]
[1771306867301,0.49577847,85.886,85.861,0.11325181]
[1771306867599,0.49577847,85.886,85.862,0.11325181]
[1771306868593,0.2,85.89,85.871,0.11276784]
[1771306868798,46.53143436,85.964,85.88,3.32800257]
[1771306868799,0.5103528,85.924,85.88,3.32800257]
[1771306868996,0.5103528,85.924,85.9,3.32800257]
[1771306869791,0.2,85.93,85.901,11.64130801]
[1771306869995,0.2,85.93,85.91,3.32800257]
[1771306870190,0.2,85.93,85.92,3.32800257]
[1771306870391,0.2,85.94,85.92,3.32800257]
[1771306870607,0.2,85.94,85.93,3.32800257]
[1771306872400,0.2,85.95,85.93,3.32800257]
[1771306874324,0.51280002,85.948,85.92,3.32800257]
[1771306874499,0.51280002,85.948,85.928,15.38]
[1771306874920,0.2,85.95,85.931,0.03145157]
[1771306875510,0.2,85.95,85.93,3.32800257]
[1771306875917,0.51280002,85.949,85.93,3.32800257]
[1771306876418,0.16318807,85.95,85.94,3.32800257]
[1771306876627,0.52875877,85.971,85.94,3.32800257]
[1771306876838,0.52875877,85.971,85.95,3.32800257]
[1771306877624,0.52875877,85.969,85.943,15.36]
[1771306877804,0.52875877,85.969,85.95,3.32800257]
[1771306879625,0.52875877,85.977,85.96,3.32800257]
[1771306881216,0.52875877,85.999,85.962,0.02589206]
[1771306881400,0.52875877,85.998,85.971,0.02589206]
[1771306882335,0.52875877,86.018,85.99,3.32800257]
[1771306882508,0.52875877,86.009,85.972,15.36]
[1771306882825,0.52875877,86.018,85.99,3.32800257]
[1771306883322,0.2670192,86.02,86.0,3.32800257]
[1771306883831,0.2,86.03,86.011,0.04173775]
[1771306884038,0.2,86.03,86.01,3.36974032]
[1771306884527,3.32800257,86.05,85.991,40.70193391]
[1771306884528,0.54962766,86.059,86.0,3.32800257]
[1771306884711,0.54962766,86.059,86.03,3.32800257]
[1771306885209,0.54962766,86.059,86.04,3.32800257]
[1771306885611,0.54962766,86.059,86.031,11.62371703]
[1771306885813,0.54962766,86.059,86.03,3.32800257]
[1771306886014,0.54962766,86.059,86.03,19.8896781]
[1771306886415,0.54962766,86.058,86.011,11.62641987]
[1771306886619,0.54962766,86.058,86.03,23.60587444]
[1771306887333,0.54962766,86.058,86.032,11.62358192]
[1771306887649,29.04042694,86.087,86.032,11.62358192]
[1771306887650,0.54962766,86.082,86.05,8.26587444]
[1771306887814,8.26587444,86.08,86.035,0.02029112]
[1771306888134,0.54962766,86.079,86.041,0.02029112]
[1771306888935,11.61696541,86.081,86.032,40.68253672]
[1771306888936,0.54962766,86.069,86.032,11.62358192]
[1771306889135,0.54962766,86.065,86.032,0.02521908]
[1771306889313,0.54962766,86.062,86.032,0.02521908]
[1771306890121,0.54962766,86.062,86.04,8.26587444]
[1771306891034,11.61588588,86.089,86.041,40.67828128]
[1771306891240,0.54962766,86.088,86.05,8.26587444]
[1771306891428,0.54962766,86.079,86.039,15.36]
[1771306892232,0.54962766,86.079,86.04,8.26587444]
[1771306893235,0.54962766,86.069,86.04,8.26587444]
[1771306893929,0.54962766,86.069,86.041,0.04949559]
[1771306894134,0.54962766,86.084,86.051,0.04949559]
[1771306894334,0.54962766,86.079,86.041,0.04949559]
[1771306894530,0.54962766,86.069,86.034,11.67747974]
[1771306894743,0.54962766,86.079,86.05,8.32005931]
[1771306894948,0.54962766,86.079,86.034,11.62329487]
[1771306894949,1e-08,86.09,86.071,0.05418487]
[1771306895119,8.26587444,86.11,86.08,8.26587444]
[1771306895328,12.84,86.137,86.071,11.61831511]
[1771306895329,0.54962766,86.138,86.101,0.05418487]
[1771306895647,0.54962766,86.138,86.11,8.26587444]
[1771306896021,0.54962766,86.148,86.12,8.26587444]
[1771306896223,0.54962766,86.148,86.11,8.26587444]
[1771306897126,0.54962766,86.146,86.11,8.26587444]
[1771306897328,0.54962766,86.155,86.099,0.49368525]
[1771306897534,0.51280002,86.139,86.1,8.75955969]
[1771306897736,0.51280002,86.139,86.101,0.49368525]
[1771306897936,0.51280002,86.129,86.087,0.49368525]
[1771306899829,0.51280002,86.128,86.089,0.49368525]
[1771306900842,0.51280002,86.146,86.088,40.65607284]
[1771306901149,0.51280002,86.139,86.1,8.74541973]
[1771306901445,0.51280002,86.139,86.101,0.49368525]
[1771306901834,0.51280002,86.139,86.102,12.10781732]
[1771306902042,0.51280002,86.137,86.102,12.10781732]
[1771306902341,0.51280002,86.129,86.093,0.49368525]
[1771306902548,0.51280002,86.129,86.1,8.25173448]
[1771306903831,0.51280002,86.127,86.1,8.25173448]
[1771306904436,0.51280002,86.127,86.077,29.04363794]
[1771306904437,0.51280002,86.127,86.09,8.25173448]
[1771306904645,0.5942929,86.119,86.087,0.5541028]
[1771306905059,0.5942929,86.119,86.09,8.25173448]
[1771306906331,0.5942929,86.117,86.09,8.25173448]
[1771306906554,0.5942929,86.117,86.09,8.80583728]
[1771306906950,0.5942929,86.117,86.091,0.5541028]
[1771306907452,0.5942929,86.145,86.111,0.5541028]
[1771306907632,0.5942929,86.139,86.111,0.5541028]
[1771306907834,8.25173448,86.19,86.131,0.5541028]
[1771306908168,8.25173448,86.19,86.103,4.61729252]
[1771306908169,8.45173448,86.21,86.151,0.5541028]
[1771306908457,11.60123239,86.198,86.17,8.25173448]
[1771306908654,11.60123239,86.198,86.153,11.60725685]
[1771306908655,8.45173448,86.21,86.18,8.25173448]
[1771306908860,11.60200482,86.192,86.16,8.80583728]
[1771306909069,11.60200482,86.192,86.161,15.36]
[1771306909352,11.60200482,86.192,86.162,15.36]
[1771306909739,0.5942929,86.191,86.162,15.36]
[1771306910333,12.21078944,86.19,86.17,8.25173448]
[1771306910545,12.21078944,86.19,86.167,15.36]
[1771306910750,0.6085154,86.189,86.167,15.36]
[1771306910950,11.60087386,86.201,86.171,0.56460823]
[1771306911145,11.86896675,86.193,86.17,8.25173448]
[1771306911353,0.6085154,86.192,86.161,0.56460823]
[1771306911657,0.6085154,86.192,86.17,8.25173448]
[1771306912335,11.744301,86.191,86.17,8.25173448]
[1771306912738,0.6085154,86.18,86.158,15.34]
[1771306912937,0.14216157,86.179,86.16,8.25173448]
[1771306913438,0.14216157,86.179,86.159,15.34]
[1771306914756,0.14216157,86.179,86.16,8.25173448]
[1771306917443,0.6085154,86.186,86.16,8.25173448]
[1771306917955,0.6085154,86.186,86.161,0.56460823]
[1771306918848,0.6085154,86.183,86.14,8.25173448]
[1771306919048,0.6085154,86.183,86.15,8.25173448]
[1771306919441,0.6085154,86.181,86.15,8.25173448]
[1771306920041,0.6085154,86.176,86.14,8.25173448]
[1771306920443,0.6085154,86.176,86.14,8.81634271]
[1771306920662,0.6085154,86.176,86.15,8.25173448]
[1771306920856,0.6085154,86.176,86.151,0.56460823]
[1771306921365,0.6085154,86.194,86.17,8.25173448]
[1771306921555,0.6085154,86.202,86.171,0.56460823]
[1771306922362,0.6085154,86.202,86.18,8.25173448]
[1771306922559,0.2,86.22,86.181,0.56460823]
[1771306922764,0.2,86.22,86.201,0.56460823]
[1771306922958,11.79825857,86.22,86.201,0.56460823]
[1771306923145,11.79825857,86.22,86.19,8.25173448]
[1771306923146,0.6085154,86.219,86.19,8.25173448]
[1771306923548,0.6085154,86.217,86.176,0.56460823]
[1771306923761,0.6085154,86.217,86.18,8.25173448]
[1771306924966,0.6085154,86.217,86.175,15.3]
[1771306924967,0.6085154,86.217,86.19,8.25173448]
[1771306925665,12.20729056,86.216,86.19,8.25173448]
[1771306925883,0.6085154,86.215,86.19,8.25173448]
[1771306926569,11.59877516,86.216,86.191,0.56460823]
[1771306926973,0.6085154,86.216,86.191,0.56460823]
[1771306927665,0.2,86.22,86.2,8.25173448]
[1771306928762,0.2,86.22,86.199,0.56460823]
[1771306929065,12.20688698,86.219,86.191,0.56460823]
[1771306929265,12.20688698,86.219,86.2,8.25173448]
[1771306929465,11.59837158,86.219,86.2,8.25173448]
[1771306930256,11.59837158,86.219,86.191,0.56460823]
[1771306930469,0.6085154,86.218,86.19,8.25173448]
[1771306931957,0.6085154,86.218,86.19,8.81634271]
[1771306932456,11.59864063,86.217,86.191,0.56460823]
[1771306933870,0.6085154,86.216,86.191,0.56460823]
[1771306935478,0.2,86.22,86.191,0.56460823]
[1771306935670,11.59837158,86.219,86.191,0.56460823]
[1771306935873,11.59837158,86.219,86.2,3.29341748]
[1771306936174,11.59837158,86.219,86.191,0.56460823]
[1771306936581,11.59837158,86.219,86.201,0.62824946]
[1771306938062,11.59837158,86.219,86.185,0.62824946]
[1771306938258,11.59837158,86.219,86.191,0.62824946]
[1771306938580,11.59837158,86.219,86.2,3.29341748]
[1771306940465,0.2,86.22,86.201,0.62824946]
[1771306940682,0.2,86.22,86.202,0.62824946]
[1771306942083,0.2,86.22,86.21,8.232465]
[1771306942591,0.2,86.23,86.211,0.62824946]
[1771306943468,11.59702652,86.229,86.198,0.62824946]
[1771306943672,0.61879159,86.228,86.2,8.232465]
[1771306943884,0.61879159,86.228,86.191,0.62824946]
[1771306944477,0.61879159,86.226,86.2,8.232465]
[1771306945567,0.61879159,86.226,86.2,8.86071446]
[1771306945876,0.61879159,86.226,86.193,0.62824946]
[1771306946583,11.59756451,86.225,86.2,8.232465]
[1771306946793,0.61879159,86.224,86.2,8.232465]
[1771306948784,0.61879159,86.222,86.193,0.62824946]
[1771306948968,0.61879159,86.222,86.19,8.232465]
[1771306949467,40.59241733,86.223,86.17,8.232465]
[1771306949468,8.232465,86.21,86.17,8.232465]
[1771306949669,8.232465,86.21,86.16,0.62824946]
[1771306949670,0.61879159,86.199,86.161,0.62824946]
[1771306950091,0.61879159,86.206,86.171,0.62824946]
[1771306950680,0.61879159,86.206,86.18,8.232465]
[1771306950880,11.6002552,86.205,86.18,8.86071446]
[1771306951075,0.61879159,86.204,86.18,0.62824946]
[1771306951770,0.61879159,86.199,86.165,0.62824946]
[1771306951970,0.61879159,86.199,86.166,15.24]
[1771306952169,0.61879159,86.199,86.165,0.62824946]
[1771306953290,0.61879159,86.197,86.16,8.232465]
[1771306953677,0.14216157,86.19,86.16,8.232465]
[1771306953879,0.61879159,86.189,86.161,0.62824946]
[1771306954195,0.61879159,86.189,86.17,8.232465]
[1771306954692,0.61879159,86.189,86.167,0.62824946]
[1771306955983,11.60254327,86.188,86.167,0.62824946]
[1771306956782,0.61879159,86.187,86.167,0.62824946]
[1771306957798,11.60254327,86.188,86.167,0.62824946]
[1771306959484,0.61879159,86.188,86.167,0.62824946]
[1771306959781,0.61879159,86.188,86.158,15.26]
[1771306960393,0.61879159,86.188,86.157,0.62824946]
[1771306961604,0.61879159,86.186,86.151,0.62824946]
[1771306961814,0.61879159,86.186,86.152,0.62824946]
[1771306963299,0.61879159,86.184,86.152,0.62824946]
[1771306966016,0.61657527,86.182,86.137,0.65833571]
[1771306966304,0.61657527,86.169,86.131,0.65833571]
[1771306967992,0.61657527,86.148,86.104,0.65833571]
[1771306968191,0.61657527,86.148,86.065,46.47638394]
[1771306968192,0.61657527,86.139,86.101,0.65833571]
[1771306968610,0.61657527,86.163,86.131,0.65833571]
[1771306968798,0.61657527,86.171,86.141,0.65833571]
[1771306969113,0.61657527,86.171,86.15,3.29676191]
[1771306969691,11.60537096,86.167,86.15,3.29676191]
[1771306969885,0.62362394,86.166,86.14,3.29676191]
[1771306970090,0.62362394,86.164,86.133,0.65504916]
[1771306970301,0.62362394,86.164,86.14,3.29676191]
[1771306972408,11.60590972,86.163,86.14,3.29676191]
[1771306974303,11.60590972,86.163,86.133,0.65504916]
[1771306974304,0.62362394,86.163,86.133,0.65504916]
[1771306974504,0.62362394,86.163,86.13,3.29676191]
[1771306974897,0.62362394,86.163,86.131,0.65504916]
[1771306975925,0.62362394,86.163,86.14,3.95181107]
[1771306976300,11.60604442,86.162,86.14,3.95181107]
[1771306977829,11.60604442,86.162,86.14,0.65504916]
[1771306978122,0.62362394,86.161,86.14,0.65504916]
[1771306978317,11.60631383,86.16,86.13,3.29676191]
[1771306978508,0.62362394,86.159,86.13,3.29676191]
[1771306980722,0.62362394,86.157,86.121,0.65504916]
[1771306980918,0.62362394,86.139,86.105,0.65504916]
[1771306982229,0.62362394,86.137,86.105,0.65504916]
[1771306983724,17.66,86.154,86.121,0.65504916]
[1771306983904,0.62362394,86.152,86.121,0.65504916]
[1771306984429,0.62362394,86.15,86.121,0.65504916]
[1771306986530,12.23141973,86.149,86.121,0.65504916]
[1771306986709,0.62362394,86.148,86.121,0.65504916]
[1771306989230,29.01751415,86.155,86.121,0.65504916]
[1771306989231,0.62362394,86.146,86.121,0.65504916]
[1771306991627,0.62362394,86.144,86.121,0.65504916]
[1771306993328,0.62362394,86.144,86.111,0.65504916]
[1771306993906,0.62362394,86.142,86.111,0.65504916]
[1771306994521,11.60774118,86.15,86.131,0.63083552]
[1771306995332,0.62308875,86.157,86.132,0.63083552]
[1771306995333,11.60681923,86.157,86.132,0.63083552]
[1771306995533,11.60620306,86.161,86.132,0.63083552]
[1771306997836,11.60620306,86.161,86.141,0.63083552]
[1771306998030,40.6178556,86.169,86.141,0.63083552]
[1771306998334,0.62308875,86.168,86.131,0.63083552]
[1771307000325,0.62308875,86.159,86.123,0.63083552]
[1771307000634,0.62308875,86.159,86.124,0.63083552]
[1771307002812,0.62308875,86.157,86.12,3.29676191]
[1771307003430,0.62308875,86.157,86.12,3.92759743]
[1771307003627,0.62308875,86.157,86.121,0.63083552]
[1771307005435,0.62308875,86.155,86.121,0.63083552]
[1771307007041,11.60685268,86.156,86.131,0.63083552]
[1771307007420,0.62308875,86.161,86.131,0.63083552]
[1771307008632,40.62115548,86.162,86.141,0.63083552]
[1771307009018,0.62308875,86.161,86.141,0.63083552]
[1771307009445,0.62308875,86.159,86.135,0.63083552]
[1771307011923,0.62308875,86.157,86.135,0.63083552]
[1771307016745,0.62308875,86.155,86.135,0.63083552]
[1771307017043,0.62308875,86.155,86.135,0.14942714]
[1771307022447,0.62308875,86.153,86.13,3.29869631]
[1771307022633,0.62308875,86.153,86.129,0.63083552]
[1771307023042,0.62308875,86.153,86.131,0.63083552]
[1771307024447,0.62393787,86.159,86.131,0.63083552]
[1771307024648,11.6051016,86.169,86.131,0.63083552]
[1771307024847,0.62393787,86.168,86.131,0.63083552]
[1771307027156,3.29869631,86.17,86.131,0.63083552]
[1771307027157,0.62393787,86.166,86.131,0.63083552]
[1771307029135,0.62393787,86.164,86.131,0.63083552]
[1771307031529,12.21866293,86.188,86.151,0.61961327]
[1771307031734,0.61611966,86.187,86.16,3.29869631]
[1771307033659,11.60281252,86.186,86.161,0.24686506]
[1771307033849,0.61611966,86.185,86.161,0.24686506]
[1771307034562,0.61611966,86.185,86.16,3.29869631]
[1771307036881,0.61611966,86.183,86.16,3.29869631]
[1771307038454,0.61611966,86.183,86.146,11.60809202]
[1771307038455,0.61611966,86.181,86.15,3.29869631]
[1771307038762,0.61611966,86.181,86.151,0.25365156]
[1771307041249,0.61611966,86.179,86.16,3.29869631]
[1771307042749,0.61611966,86.179,86.16,3.56596013]
[1771307043166,11.60227404,86.19,86.171,0.26726382]
[1771307043968,12.2183937,86.19,86.171,0.26726382]
[1771307044164,179.60157147,86.749,86.18,3.29869631]
[1771307044165,11.59783352,86.223,86.18,3.29869631]
[1771307044350,0.64491389,86.219,86.18,3.29869631]
[1771307044966,0.64491389,86.219,86.165,40.61972289]
[1771307044967,0.64491389,86.209,86.17,3.29869631]
[1771307045271,0.64491389,86.209,86.18,3.29869631]
[1771307046058,0.64491389,86.207,86.18,3.29869631]
[1771307048376,0.64491389,86.199,86.148,15.08]
[1771307048570,0.64491389,86.199,86.16,3.29869631]
[1771307049161,0.64491389,86.206,86.18,3.29869631]
[1771307049768,0.64491389,86.206,86.19,3.29869631]
[1771307050072,11.59837158,86.219,86.19,3.29869631]
[1771307050264,0.64491389,86.216,86.18,3.29869631]
[1771307050774,0.64491389,86.216,86.181,0.02244926]
[1771307051755,0.64491389,86.209,86.171,0.02563385]
[1771307052559,0.64491389,86.207,86.171,0.02563385]
[1771307053153,0.64491389,86.207,86.172,0.02878186]
[1771307054359,0.64491389,86.205,86.172,0.02878186]
[1771307055082,0.64491389,86.205,86.181,0.03801061]
[1771307056682,0.64491389,86.203,86.12,0.0439878]
[1771307056889,0.64491389,86.203,86.068,19.48022193]
[1771307056890,0.64491389,86.159,86.126,0.0439878]
[1771307057269,30.0,86.158,86.126,0.0439878]
[1771307057468,30.64491389,86.158,86.126,0.0439878]
[1771307057670,0.64491389,86.157,86.126,0.0439878]
[1771307058476,11.60685268,86.156,86.126,0.0439878]
[1771307058665,0.64491389,86.155,86.126,0.0439878]
[1771307061086,0.64491389,86.153,86.126,0.0439878]
[1771307063468,11.54600949,86.154,86.126,0.0439878]
[1771307063670,0.67547021,86.232,86.164,0.14216157]
[1771307063875,0.67547021,86.232,86.2,3.29869631]
[1771307065590,0.67547021,86.232,86.201,11.60079349]
[1771307065883,0.67547021,86.232,86.201,126.96925303]
[1771307066566,0.67547021,86.232,86.201,11.60079349]
[1771307067692,0.67547021,86.232,86.21,3.29869631]
[1771307074189,0.67547021,86.232,86.22,3.29869631]
[1771307074888,0.67547021,86.229,86.21,3.29869631]
[1771307076787,0.67547021,86.229,86.175,34.01625931]
[1771307076990,0.67547021,86.227,86.21,3.29869631]
[1771307081189,0.67547021,86.229,86.21,3.29869631]
[1771307081908,0.67547021,86.229,86.21,3.29239131]
[1771307086191,0.67547021,86.229,86.22,3.29239131]
[1771307086578,0.67547021,86.229,86.209,0.07727568]
[1771307086579,0.67547021,86.229,86.21,3.29239131]
[1771307089892,0.67547021,86.227,86.21,3.29239131]
[1771307095379,0.67547021,86.225,86.21,3.29239131]
[1771307095584,0.67547021,86.225,86.2,3.29239131]
[1771307095983,0.67547021,86.223,86.2,3.29239131]
[1771307098506,0.67547021,86.221,86.2,3.29239131]
[1771307098925,0.67547021,86.226,86.21,3.29239131]
[1771307099227,0.2,86.24,86.22,3.29239131]
[1771307099228,12.27128751,86.238,86.22,3.29239131]
[1771307099388,17.8,86.237,86.22,3.29239131]
[1771307100104,0.67547021,86.238,86.22,3.29239131]
[1771307100307,17.82,86.238,86.23,3.29239131]
[1771307100512,0.2,86.25,86.231,0.11868632]
[1771307100693,0.2,86.25,86.24,3.29239131]
[1771307101008,0.2,86.25,86.231,0.11868632]
[1771307101886,0.67547021,86.249,86.225,0.12368518]
[1771307102114,0.67547021,86.249,86.23,3.29239131]
[1771307102317,0.67547021,86.249,86.23,3.41607649]
[1771307102493,0.67547021,86.249,86.23,3.29239131]
[1771307102694,0.67547021,86.249,86.224,0.12368518]
[1771307103489,15.07697561,86.254,86.23,3.29239131]
[1771307103707,0.1,86.27,86.24,3.29239131]
[1771307104212,0.1,86.27,86.25,3.29239131]
[1771307104596,0.1,86.27,86.26,3.29239131]
[1771307104795,0.1,86.27,86.25,3.29239131]
[1771307105915,0.1,86.27,86.251,11.59406847]
[1771307106497,0.1,86.27,86.26,3.29239131]
[1771307106700,0.1,86.27,86.251,40.57923965]
[1771307107626,1e-08,86.284,86.26,3.29239131]
[1771307107907,0.1,86.3,86.271,40.56983226]
[1771307108096,0.1,86.3,86.272,15.06]
[1771307108296,0.1,86.3,86.28,3.29239131]
[1771307109112,0.1,86.3,86.281,11.5900372]
[1771307109315,0.1,86.32,86.29,3.29239131]
[1771307110394,0.83854103,86.32,86.29,3.29239131]
[1771307110599,0.1,86.32,86.291,0.02283971]
[1771307111214,0.1,86.32,86.292,0.02283971]
[1771307111399,0.1,86.32,86.301,0.02283971]
[1771307115912,0.74996089,86.319,86.281,11.5900372]
[1771307117221,0.1,86.32,86.281,11.5900372]
[1771307117798,0.1,86.32,86.28,0.02747149]
[1771307118402,0.1,86.32,86.281,0.02747149]
[1771307119438,0.84996089,86.32,86.282,0.03073032]
[1771307121707,0.74996089,86.319,86.282,0.03073032]
[1771307124123,0.74996089,86.317,86.282,0.03073032]
[1771307126030,0.74996089,86.309,86.27,11.59151501]
[1771307126220,11.58533759,86.316,86.228,0.0524889]
[1771307126221,0.74996089,86.279,86.228,0.0524889]
[1771307126421,0.74996089,86.284,86.24,3.29239131]
[1771307126619,40.54868158,86.316,86.242,0.05545446]
[1771307126620,0.74996089,86.299,86.242,0.05545446]
[1771307127025,0.74996089,86.299,86.251,0.05545446]
[1771307127225,0.74996089,86.299,86.253,0.05545446]
[1771307127524,0.74996089,86.299,86.261,0.05545446]
[1771307129432,0.74996089,86.297,86.261,0.05545446]
[1771307133132,0.74996089,86.309,86.261,0.05545446]
[1771307134533,0.74996089,86.309,86.253,40.57829871]
[1771307134534,0.74996089,86.309,86.271,0.07528126]
[1771307134740,0.74996089,86.309,86.272,0.07798503]
[1771307138137,0.74996089,86.319,86.272,0.07798503]
[1771307139136,11.58493495,86.319,86.272,0.07798503]
[1771307139324,0.74996089,86.318,86.272,0.07798503]
[1771307140839,0.74996089,86.299,86.272,0.07798503]
[1771307141849,0.74996089,86.289,86.271,11.59138064]